bitfinex/quotes_ETHUSD_20260227
["timestamp","ask_amount","ask_price","bid_price","bid_amount"]
[1772214666451,0.47302949,1924.1,1923.3,1.29984921]
[1772214666754,1.29929435,1924.2,1923.3,0.4931617]
[1772214667046,5.19684064,1924.3,1923.3,0.4931617]
[1772214667047,1.29917372,1924.3,1923.3,0.4931617]
[1772214667350,1.169,1924.5,1923.3,0.4931617]
[1772214667547,6.3651674,1924.5,1923.5,0.4931617]
[1772214667749,5.1971674,1924.5,1923.6,1.6441617]
[1772214667935,5.1971674,1924.5,1923.7,0.4931617]
[1772214667936,1.30003871,1924.5,1923.7,0.4931617]
[1772214668254,1.30003929,1924.5,1923.7,0.4931617]
[1772214669860,1.30003929,1924.5,1923.9,0.4931617]
[1772214669861,0.001,1924.5,1923.9,0.4931617]
[1772214670156,0.4984766,1924.7,1923.8,1.29951138]
[1772214670369,0.001,1924.8,1924.0,0.49973323]
[1772214670726,1.29983628,1924.8,1924.0,0.49973323]
[1772214670930,0.001,1924.8,1924.0,0.49973323]
[1772214671629,0.001,1924.8,1924.1,1.29930876]
[1772214671630,0.001,1924.4,1924.1,1.29930876]
[1772214672239,0.001,1924.8,1924.2,0.49973323]
[1772214672438,0.001,1924.8,1924.4,0.49973323]
[1772214672761,0.00153886,1925.0,1924.4,0.49973323]
[1772214673131,1.79673562,1925.7,1924.3,3.60917557]
[1772214673132,1.79672354,1925.7,1924.6,0.49973323]
[1772214673328,1.79672354,1925.7,1924.5,1.151]
[1772214673329,0.4984766,1925.4,1924.5,1.151]
[1772214673733,1.29849893,1925.3,1924.6,1.29897121]
[1772214673933,1.29849893,1925.3,1924.6,2.44997121]
[1772214674924,1.79691852,1925.4,1924.6,2.44997121]
[1772214675129,1.79691852,1925.4,1924.6,1.29897121]
[1772214675554,1.79691364,1925.4,1924.6,1.29897121]
[1772214675755,1.79691364,1925.4,1924.6,1.79870444]
[1772214676138,2.95765217,1925.1,1924.4,1.29910621]
[1772214676327,0.4984766,1924.9,1924.0,0.00153886]
[1772214676531,0.4984766,1924.7,1924.0,1.30090617]
[1772214676961,0.4984766,1925.0,1924.0,1.30090617]
[1772214677135,0.4984766,1925.0,1924.1,0.49973323]
[1772214678052,1.29876876,1924.9,1924.2,1.29924124]
[1772214678861,1.79711043,1925.1,1924.2,1.79897447]
[1772214679042,1.79711043,1925.1,1924.0,1.30086487]
[1772214679043,2.95765217,1924.7,1924.0,1.30086487]
[1772214679443,0.4984766,1924.7,1924.0,1.30086487]
[1772214680137,2.45917557,1924.3,1923.6,1.29961005]
[1772214680455,0.4984766,1924.4,1923.6,1.29961005]
[1772214681058,1.6624766,1924.6,1923.6,1.79934328]
[1772214681254,0.4984766,1924.6,1923.6,1.79934328]
[1772214681664,0.4984766,1924.5,1923.6,1.79934328]
[1772214681868,0.4984766,1924.5,1923.7,1.15]
[1772214682045,0.4984766,1924.5,1923.7,0.49973323]
[1772214682249,1.29904937,1924.5,1923.7,0.49973323]
[1772214683056,5.19567607,1924.7,1923.7,0.49973323]
[1772214683261,1.29890372,1924.7,1923.7,0.49973323]
[1772214683859,2.95765217,1924.8,1923.7,0.49973323]
[1772214684040,1.79732068,1924.8,1923.7,0.49973323]
[1772214684243,1.79732068,1924.8,1923.9,0.49973323]
[1772214684458,1.29884408,1924.8,1924.0,1.65073323]
[1772214684667,1.29983032,1924.9,1924.0,1.65073323]
[1772214684849,0.001,1924.9,1924.1,0.49973323]
[1772214685047,1.29979307,1924.9,1924.1,0.49973323]
[1772214685451,0.001,1924.9,1924.1,0.49973323]
[1772214685650,0.001,1924.9,1924.3,0.49973323]
[1772214685861,0.00153886,1925.0,1924.5,0.49973323]
[1772214686178,0.00153886,1925.0,1924.6,1.79870444]
[1772214686470,1.79674898,1925.7,1924.7,1.64973323]
[1772214686644,1.79674898,1925.7,1924.8,0.49973323]
[1772214686844,10.18321577,1925.8,1924.8,0.49973323]
[1772214686845,1.79809477,1926.0,1925.0,0.49973323]
[1772214687162,2.45917557,1925.9,1925.1,1.151]
[1772214687769,1.79809477,1926.0,1925.1,1.151]
[1772214688144,0.4984766,1925.9,1925.2,1.29856638]
[1772214688339,2.95765217,1925.9,1925.2,1.29856638]
[1772214689270,0.4984766,1925.9,1925.2,1.29856638]
[1772214689473,0.4984766,1925.9,1925.1,6.34535042]
[1772214689474,2.95765217,1925.9,1925.1,1.29857885]
[1772214689667,2.95765217,1925.9,1924.9,1.15]
[1772214689668,2.45917557,1925.7,1924.9,1.15]
[1772214689847,2.45917557,1925.7,1924.8,1.29883624]
[1772214690175,2.45917557,1925.5,1924.8,1.29883624]
[1772214690348,0.4984766,1925.4,1924.8,1.29883624]
[1772214691550,1.29829663,1925.6,1924.8,1.29883624]
[1772214691750,0.4984766,1925.4,1924.5,1.29903871]
[1772214691949,2.95765217,1925.3,1924.5,2.44903871]
[1772214692271,0.4984766,1925.3,1924.5,2.44903871]
[1772214692649,1.29843581,1925.4,1924.5,2.94877194]
[1772214693376,1.79691241,1925.4,1924.5,2.94877194]
[1772214694255,0.4984766,1925.1,1924.5,2.44902909]
[1772214694875,2.46043581,1925.4,1924.5,2.44902909]
[1772214694876,0.4984766,1925.3,1924.5,2.44902909]
[1772214695550,0.4984766,1925.6,1924.6,0.49973323]
[1772214696280,1.29822921,1925.7,1924.6,0.49973323]
[1772214696281,0.4984766,1925.4,1924.6,0.49973323]
[1772214696453,1.29849893,1925.3,1924.5,2.44902909]
[1772214696853,1.79697553,1925.3,1924.5,1.29902909]
[1772214697066,0.4984766,1925.2,1924.5,1.29902909]
[1772214698468,0.4984766,1925.2,1924.6,0.0011]
[1772214698780,0.001,1925.3,1924.6,0.0011]
[1772214699475,0.001,1925.3,1924.6,0.45252847]
[1772214699863,0.001,1925.3,1924.8,0.45142847]
[1772214700064,0.001,1925.3,1924.9,1.151]
[1772214700567,0.001,1925.3,1925.0,1.29870129]
[1772214700762,0.46748535,1925.8,1925.0,1.29870129]
[1772214701062,0.00153886,1926.0,1925.1,0.46126611]
[1772214701478,0.46120066,1926.0,1925.1,0.46126611]
[1772214702498,0.00153886,1926.0,1925.2,1.75983249]
[1772214702785,0.00153886,1926.0,1925.3,1.151]
[1772214703188,0.4596618,1925.9,1925.2,2.44956638]
[1772214703485,0.4596618,1925.9,1925.2,1.29856638]
[1772214703657,0.00153886,1926.0,1925.2,1.29856638]
[1772214703858,0.00153886,1926.0,1925.2,1.75983249]
[1772214704083,0.00153886,1926.0,1925.3,0.46126611]
[1772214704395,0.00153886,1926.0,1925.5,0.46126611]
[1772214704593,0.00153886,1926.0,1925.6,1.29829663]
[1772214704895,0.00153886,1926.0,1925.4,1.151]
[1772214705273,0.46120066,1926.0,1925.3,2.44943149]
[1772214705875,0.4596618,1925.9,1925.0,1.29870129]
[1772214706397,0.4596618,1925.7,1925.0,1.29870129]
[1772214706694,1.75795113,1925.7,1925.0,1.29870129]
[1772214706995,0.4596618,1925.7,1924.8,0.46126611]
[1772214707371,2.55065419,1925.9,1924.8,0.46126611]
[1772214707681,0.46120066,1926.0,1925.2,0.46126611]
[1772214707869,0.00153886,1926.0,1925.3,1.61226611]
[1772214708072,0.00153886,1926.0,1925.4,0.46126611]
[1772214708676,0.00153886,1926.0,1925.5,1.29836406]
[1772214708875,1.29783182,1926.3,1925.6,0.46126611]
[1772214709074,0.4596618,1926.6,1925.7,2.92044168]
[1772214709267,0.4596618,1926.6,1925.8,1.61226611]
[1772214710071,1.29753906,1926.8,1925.8,1.61226611]
[1772214710797,0.4596618,1926.8,1926.0,1.29802699]
[1772214711495,1.29891235,1927.0,1926.0,1.7592931]
[1772214711697,0.00153886,1927.0,1926.1,0.46126611]
[1772214712197,0.00153886,1927.0,1926.1,3.2084911]
[1772214712399,0.4596618,1926.9,1926.2,1.15]
[1772214712700,0.00153886,1927.0,1926.2,1.61126611]
[1772214712902,0.00153886,1927.0,1926.3,1.29782484]
[1772214713611,0.00153886,1927.0,1926.3,1.75909095]
[1772214713904,0.00153886,1927.0,1926.4,0.46126611]
[1772214714077,5.18756431,1927.7,1926.4,0.46126611]
[1772214714078,1.29705634,1927.5,1926.4,0.46126611]
[1772214714283,2.45199646,1927.6,1926.4,0.46126611]
[1772214714806,1.29699646,1927.6,1926.4,0.46126611]
[1772214715011,1.75659353,1927.7,1926.6,0.46126611]
[1772214715318,1.75655197,1927.7,1926.8,0.46126611]
[1772214715805,1.7565515,1927.7,1926.8,0.46126611]
[1772214716013,0.4596618,1927.6,1926.8,1.15]
[1772214716210,0.4596618,1927.6,1926.5,1.75895622]
[1772214716211,0.4596618,1927.5,1926.5,1.75895622]
[1772214716416,0.44385223,1927.5,1926.8,1.15]
[1772214716911,1.29708415,1927.4,1926.9,1.29742072]
[1772214717091,2.99081975,1927.8,1926.9,1.29742072]
[1772214717293,0.4596618,1927.6,1926.9,1.29742072]
[1772214719127,1.29701686,1927.5,1926.9,1.29742072]
[1772214720201,1.75663231,1927.6,1926.9,1.29742072]
[1772214720493,1.29694393,1927.7,1926.9,1.151]
[1772214720688,0.4596618,1927.8,1926.9,1.61226611]
[1772214720888,1.75647683,1927.8,1927.0,0.46126611]
[1772214721088,1.75647683,1927.8,1927.1,1.29728607]
[1772214721416,1.75647683,1927.8,1926.7,5.18995225]
[1772214721417,0.4596618,1927.4,1926.8,2.44848806]
[1772214723724,1.75675477,1927.4,1926.8,1.29748806]
[1772214723887,1.75675477,1927.4,1926.8,2.44948806]
[1772214724215,0.4596618,1927.4,1926.8,2.44948806]
[1772214724419,0.4596618,1927.6,1926.8,1.29748806]
[1772214724798,0.4596618,1927.6,1926.9,1.152]
[1772214725109,1.75674595,1927.4,1926.8,2.44948806]
[1772214725419,0.4596618,1927.3,1926.7,1.152]
[1772214725788,5.18833661,1927.6,1926.7,1.61326611]
[1772214725789,0.4596618,1927.6,1926.7,1.61326611]
[1772214726110,2.74023083,1928.1,1927.1,0.46126611]
[1772214726111,3.89523083,1928.1,1927.1,0.46126611]
[1772214726313,2.74023083,1928.1,1927.2,1.61326611]
[1772214726502,0.4596618,1928.2,1927.3,0.46126611]
[1772214726703,1.155,1928.4,1927.3,0.46126611]
[1772214727016,1.29648254,1928.3,1927.4,1.152]
[1772214727227,0.1548857,1928.6,1927.9,0.46126611]
[1772214727445,1.29618563,1928.8,1927.6,0.46126611]
[1772214727729,0.4596618,1928.5,1927.7,1.152]
[1772214727917,0.4596618,1928.7,1927.7,1.61326611]
[1772214728096,0.4596618,1928.6,1927.6,0.46126611]
[1772214728297,0.4596618,1928.7,1927.5,1.29701686]
[1772214728529,0.4596618,1928.7,1927.6,0.48014093]
[1772214728693,0.4596618,1928.7,1927.6,1.63215601]
[1772214728892,0.4596618,1928.7,1927.7,0.9413514]
[1772214729092,1.75574102,1928.9,1928.0,1.29668049]
[1772214729396,1.75574102,1928.9,1927.7,2.44888229]
[1772214729397,0.4596618,1928.6,1927.7,2.44888229]
[1772214730339,0.49728846,1928.5,1927.6,1.29689803]
[1772214730629,0.49728846,1928.4,1927.5,1.29697171]
[1772214730925,1.153,1928.5,1927.4,1.29703641]
[1772214730926,0.49728846,1928.2,1927.4,1.29703641]
[1772214731112,1.79385622,1928.2,1927.4,1.29703641]
[1772214731317,0.49728846,1928.1,1927.3,1.2971033]
[1772214731498,0.49728846,1927.9,1927.1,1.29728607]
[1772214732359,0.49728846,1927.9,1927.0,6.3417406]
[1772214732360,0.49728846,1927.9,1927.0,1.15253886]
[1772214732494,0.49728846,1927.9,1927.0,1.29884347]
[1772214733317,1.29681502,1927.8,1927.0,1.29884347]
[1772214733531,3.42530482,1928.4,1927.0,1.29884347]
[1772214733532,0.49728846,1928.6,1927.2,6.604954]
[1772214733829,0.49728846,1928.0,1927.0,1.29884347]
[1772214734007,0.49728846,1927.7,1927.0,0.00153886]
[1772214735606,1.29694957,1927.6,1927.0,0.00153886]
[1772214736239,0.49728846,1927.5,1927.0,0.00153886]
[1772214738106,0.49728846,1927.4,1926.7,6.33911259]
[1772214738303,0.49728846,1927.4,1926.8,0.48283138]
[1772214738502,0.49728846,1927.4,1926.9,0.48283138]
[1772214738733,0.49728846,1927.4,1926.7,5.19011259]
[1772214738936,0.49728846,1927.4,1926.8,0.4833036]
[1772214739232,0.49728846,1927.4,1926.9,0.4833036]
[1772214739425,0.49728846,1927.4,1927.0,0.48355586]
[1772214739603,0.49728846,1927.4,1926.7,5.19011259]
[1772214739928,0.49728846,1927.4,1926.9,0.0011]
[1772214740336,0.49728846,1927.4,1927.0,0.48384401]
[1772214740515,0.49728846,1927.4,1926.9,0.0011]
[1772214740713,0.49728846,1927.4,1927.0,0.48384029]
[1772214740910,0.49728846,1927.4,1926.9,0.0011]
[1772214741110,0.49728846,1927.4,1927.0,0.48384008]
[1772214741316,0.49728846,1927.3,1926.9,0.0011]
[1772214741821,1.79447637,1927.3,1926.9,0.0011]
[1772214742131,0.49728846,1927.6,1926.9,0.0011]
[1772214743709,1.29708415,1927.4,1926.9,0.0011]
[1772214743907,0.49728846,1927.3,1926.9,0.0011]
[1772214744256,0.49728846,1927.2,1926.2,1.29789222]
[1772214744743,2.44908415,1927.4,1926.2,1.29789222]
[1772214744744,0.49728846,1926.9,1926.2,1.29789222]
[1772214745822,0.49728846,1926.9,1926.1,5.19156889]
[1772214746227,5.18833674,1927.4,1926.1,5.19156889]
[1772214746228,1.79431093,1927.5,1926.4,14.13004441]
[1772214746429,1.79431093,1927.5,1926.5,1.149]
[1772214746667,0.49728846,1927.4,1926.5,1.63048641]
[1772214747306,0.49728846,1927.4,1926.5,0.48148641]
[1772214747502,0.49728846,1927.4,1926.4,0.891]
[1772214748123,1.7944281,1927.4,1926.5,1.29769011]
[1772214748319,0.49728846,1927.4,1926.5,1.29769011]
[1772214748522,5.18765131,1927.7,1926.6,0.48148641]
[1772214748523,0.49728846,1927.7,1926.6,0.48148641]
[1772214748909,0.49728846,1927.7,1926.5,1.29769011]
[1772214749109,0.49728846,1927.7,1926.6,1.148]
[1772214749526,0.49728846,1927.7,1926.5,1.29769011]
[1772214749726,0.49728846,1927.7,1926.5,2.44569011]
[1772214749932,0.49728846,1927.7,1926.6,0.48148641]
[1772214750330,1.79417259,1927.7,1926.7,1.77904181]
[1772214751028,0.49728846,1927.7,1926.7,1.77904181]
[1772214751215,1.79418284,1927.7,1926.8,0.48148641]
[1772214751745,1.79418284,1927.7,1926.7,1.2975554]
[1772214751746,0.49728846,1927.6,1926.7,1.2975554]
[1772214751942,4.46136712,1927.9,1926.9,0.48148641]
[1772214752241,4.46136712,1927.9,1927.1,1.29728607]
[1772214752439,0.49728846,1927.8,1927.1,1.29728607]
[1772214752640,0.49728846,1927.8,1926.7,5.19019053]
[1772214753146,0.49728846,1927.8,1926.8,0.0011]
[1772214753520,0.001,1927.6,1926.8,0.0011]
[1772214753845,0.49828846,1927.6,1926.8,0.0011]
[1772214754217,0.49728846,1927.4,1926.8,0.0011]
[1772214754726,0.49728846,1927.3,1926.8,0.0011]
[1772214756530,0.49728846,1927.1,1926.5,1.29763431]
[1772214756730,1.29720584,1927.3,1926.5,1.29763431]
[1772214756943,1.7944943,1927.3,1926.5,1.29763431]
[1772214757147,0.49728846,1927.3,1926.5,1.29763431]
[1772214757655,6.84114557,1927.6,1926.5,1.77912072]
[1772214757945,0.49728846,1927.5,1926.5,1.77912072]
[1772214759356,0.001,1927.6,1926.7,0.48164789]
[1772214759643,0.001,1927.6,1927.0,0.48164789]
[1772214760347,0.45966672,1927.5,1926.6,1.155]
[1772214760645,0.45966672,1927.5,1926.7,7.347762]
[1772214760832,0.001,1927.6,1926.7,0.45224403]
[1772214761153,1.29795442,1927.6,1926.7,0.45224403]
[1772214761346,1.29795442,1927.6,1926.8,1.29748806]
[1772214761720,1.75762114,1927.6,1926.8,1.29748806]
[1772214762850,0.46066672,1927.6,1926.8,1.29748806]
[1772214763214,0.001,1927.6,1926.9,0.45224403]
[1772214763540,0.45966672,1927.4,1926.5,5.19058061]
[1772214763748,0.45966672,1927.3,1926.5,5.19058061]
[1772214763922,0.46066672,1927.6,1926.6,0.45224403]
[1772214764122,0.46066672,1927.6,1926.5,6.34558061]
[1772214765353,0.45966672,1927.2,1926.4,2.45269629]
[1772214765822,0.45966672,1927.2,1926.4,1.29769629]
[1772214766023,0.45966672,1927.1,1926.4,1.29769629]
[1772214766423,0.45966672,1927.1,1926.9,0.0011]
[1772214767744,1.29735339,1927.0,1926.9,0.0011]
[1772214767928,1.75702011,1927.0,1925.4,14.81871176]
[1772214768131,0.45966672,1926.9,1926.1,1.2979596]
[1772214768644,0.45966672,1926.8,1926.0,0.00153886]
[1772214768947,0.45966672,1926.6,1926.0,0.00153886]
[1772214770056,1.75730035,1926.6,1926.0,0.00153886]
[1772214770260,1.61566672,1926.9,1926.1,1.153]
[1772214770474,5.18863431,1927.3,1926.3,0.45224403]
[1772214770475,1.75689335,1927.2,1926.3,0.45224403]
[1772214770680,2.9137112,1927.5,1926.3,0.45224403]
[1772214770837,0.45966672,1927.4,1926.4,0.45224403]
[1772214771027,0.45966672,1927.4,1926.4,0.982]
[1772214771224,0.45966672,1927.4,1926.4,1.43424403]
[1772214772572,1.29715145,1927.3,1926.5,1.29769011]
[1772214774840,1.75681817,1927.3,1926.5,1.29769011]
[1772214776239,1.29802034,1927.5,1926.6,0.45224403]
[1772214776469,1.75768753,1927.5,1926.6,0.45224403]
[1772214776653,1.75677766,1927.4,1926.7,1.2975554]
[1772214778172,0.45966672,1927.3,1926.7,1.2975554]
[1772214778377,1.29802336,1927.5,1926.7,1.74979943]
[1772214778547,0.45966672,1927.4,1926.7,1.2975554]
[1772214778869,1.75681817,1927.3,1926.5,5.1907343]
[1772214781071,0.001,1927.5,1926.5,5.1907343]
[1772214781072,1.29802231,1927.5,1926.6,0.45224403]
[1772214781274,0.001,1927.5,1926.6,0.45224403]
[1772214781581,0.001,1927.5,1926.9,0.45224403]
[1772214781754,0.001,1927.5,1927.0,1.60324403]
[1772214782258,0.001,1927.5,1927.0,0.45224403]
[1772214782449,1.75769443,1927.5,1926.7,1.60324403]
[1772214782647,0.001,1927.5,1926.8,5.64192694]
[1772214782946,0.001,1927.5,1927.0,0.45224403]
[1772214784641,0.001,1927.5,1926.9,2.90166475]
[1772214784853,0.001,1927.5,1927.0,0.45224403]
[1772214786173,0.00153886,1928.0,1927.3,0.45224403]
[1772214786373,0.00153886,1928.0,1927.6,2.654161]
[1772214786574,0.45966672,1928.7,1927.6,0.45224403]
[1772214786776,1.30066672,1928.8,1927.9,0.45224403]
[1772214786979,0.45966672,1928.7,1927.9,0.45224403]
[1772214787362,0.46120558,1929.0,1927.9,0.45224403]
[1772214787577,0.45966672,1928.9,1928.0,0.45224403]
[1772214788896,1.75580939,1928.8,1928.1,1.29661324]
[1772214789193,0.00153886,1929.0,1928.1,1.74885727]
[1772214789560,1.29755716,1929.0,1928.1,1.74885727]
[1772214789886,0.00153886,1929.0,1928.1,1.74885727]
[1772214790092,1.29755577,1929.0,1928.1,1.74885727]
[1772214790458,0.47480668,1928.8,1928.1,1.29661324]
[1772214790653,2.9214031,1928.7,1927.9,5.18681809]
[1772214790882,0.47480668,1928.6,1927.9,5.18681809]
[1772214791179,1.2963443,1928.5,1927.9,1.29674775]
[1772214791952,2.92313285,1928.6,1927.9,1.29674775]
[1772214792152,0.47480668,1928.5,1927.9,1.29674775]
[1772214792969,1.29632617,1928.6,1927.9,1.29674775]
[1772214793288,1.77113285,1928.6,1927.8,5.18712938]
[1772214793784,0.47480668,1928.5,1927.8,5.18712938]
[1772214794361,0.001,1928.4,1927.8,5.18712938]
[1772214794562,0.001,1928.4,1927.9,0.48340829]
[1772214795284,0.001,1928.4,1928.0,1.29668049]
[1772214797594,5.18454696,1928.9,1928.1,0.48340829]
[1772214797595,1.15,1928.9,1928.1,0.48340829]
[1772214798119,1.29758985,1929.0,1928.1,0.48340829]
[1772214798410,1.15053886,1929.0,1928.1,0.48340829]
[1772214798699,1.29755258,1929.0,1928.2,0.48340829]
[1772214799095,1.77235926,1929.0,1928.2,0.48340829]
[1772214799297,1.77091411,1928.9,1928.2,1.296546]
[1772214799799,0.47480668,1928.8,1928.0,5.18657092]
[1772214800496,1.62380668,1928.8,1928.0,5.18657092]
[1772214800698,1.62380668,1928.8,1928.0,5.66997921]
[1772214800999,2.44407742,1928.9,1928.1,0.48340829]
[1772214801303,2.9188841,1928.9,1928.1,0.48340829]
[1772214801606,0.47480668,1928.8,1928.2,1.296546]
[1772214802373,0.47480668,1928.8,1927.8,3.60259642]
[1772214802374,0.47480668,1928.8,1927.3,0.065536]
[1772214802575,0.47480668,1928.4,1927.4,1.78049244]
[1772214802779,0.47480668,1928.4,1927.5,2.86395]
[1772214803010,0.47480668,1928.4,1927.5,0.48340829]
[1772214803215,1.29607742,1928.9,1927.8,0.48340829]
[1772214803216,0.47480668,1928.8,1927.8,0.48340829]
[1772214803512,0.00153886,1929.0,1928.1,1.78002153]
[1772214803808,0.00153886,1929.0,1928.1,2.93602153]
[1772214804179,0.00153886,1929.0,1928.2,0.48340829]
[1772214805084,0.00153886,1929.0,1928.4,0.48340829]
[1772214805275,0.00153886,1929.0,1928.2,2.611693]
[1772214805696,0.00153886,1929.0,1928.3,1.29647876]
[1772214806305,3.59413528,1929.0,1928.3,1.29647876]
[1772214806507,0.47480668,1928.9,1928.3,1.29647876]
[1772214806750,0.47480668,1928.9,1928.2,1.29649792]
[1772214807612,1.29614267,1928.8,1928.0,3.485236]
[1772214807782,1.29714267,1928.8,1927.9,1.78015604]
[1772214808182,0.001,1928.8,1927.9,1.78015604]
[1772214808708,0.47480668,1928.7,1927.9,1.78015604]
[1772214809088,0.001,1928.8,1928.0,0.48340829]
[1772214809608,0.001,1928.8,1928.1,1.78002153]
[1772214809993,0.001,1928.8,1928.2,4.182071]
[1772214810811,0.001,1928.8,1928.3,0.48340829]
[1772214811346,1.145,1929.8,1928.7,0.48340829]
[1772214811486,1.145,1929.8,1928.2,1.34285624]
[1772214811487,3.74205161,1929.9,1928.1,1.36214924]
[1772214811687,0.47480668,1929.6,1928.8,1.29614267]
[1772214812130,0.47480668,1929.6,1928.7,1.29615624]
[1772214812788,1.61980668,1929.6,1928.7,1.29615624]
[1772214813188,0.47480668,1929.5,1928.7,1.29615624]
[1772214813496,0.47480668,1929.5,1928.6,6.34197059]
[1772214813497,0.47480668,1929.4,1928.6,2.45326487]
[1772214813699,1.61980668,1929.6,1928.6,2.93667316]
[1772214814012,3.83971882,1929.8,1928.8,2.44659642]
[1772214814013,3.83968765,1929.8,1928.8,2.44659642]
[1772214814239,3.83968765,1929.8,1928.9,9.596162]
[1772214814240,2.54418066,1929.8,1928.9,9.596162]
[1772214814517,0.47480668,1929.7,1928.8,2.93000471]
[1772214814684,0.47480668,1929.7,1928.9,9.989629]
[1772214815419,6.32688413,1929.9,1929.0,1.157]
[1772214815420,1.77026222,1929.9,1929.0,1.157]
[1772214815819,1.77026222,1929.9,1929.1,1.29594111]
[1772214816141,0.00153886,1930.0,1929.2,0.48340829]
[1772214816784,0.00153886,1930.0,1929.2,2.93000471]
[1772214817118,0.00153886,1930.0,1929.3,0.48340829]
[1772214817802,5.1806975,1930.3,1929.3,0.48340829]
[1772214817803,1.29500129,1930.5,1929.6,2.93000471]
[1772214817991,0.47480668,1930.4,1929.6,0.48340829]
[1772214818535,5.66416011,1930.9,1930.0,0.47681047]
[1772214819029,5.66416011,1930.9,1929.5,1.156]
[1772214819030,0.48501559,1930.8,1929.7,0.47681047]
[1772214819212,1.143,1930.7,1929.7,0.47681047]
[1772214819391,1.62801559,1930.6,1929.7,0.47681047]
[1772214819824,0.48501559,1930.5,1929.4,5.37514649]
[1772214820126,1.29506837,1930.4,1929.4,2.92855007]
[1772214820291,1.143,1930.4,1929.4,2.92855007]
[1772214820491,1.63659631,1930.4,1929.4,2.92855007]
[1772214821021,0.001,1930.3,1929.4,2.92855007]
[1772214821388,1.144,1930.3,1929.4,2.92855007]
[1772214822016,1.29613547,1930.3,1929.4,2.92855007]
[1772214822391,1.78973178,1930.3,1929.4,2.92855007]
[1772214822593,1.143,1930.2,1929.4,2.92855007]
[1772214823115,1.63659631,1930.2,1929.4,2.92855007]
[1772214823319,0.49359631,1930.1,1929.3,1.29580676]
[1772214823618,0.001,1930.3,1929.4,0.49796667]
[1772214823807,0.49459631,1930.3,1929.4,0.49796667]
[1772214824000,1.29520256,1930.2,1929.2,5.1833343]
[1772214824204,0.49359631,1930.1,1929.2,5.68130097]
[1772214824391,1.63659631,1930.1,1929.2,5.68130097]
[1772214824595,0.49359631,1930.0,1929.2,5.1833343]
[1772214825926,0.49359631,1930.0,1929.0,1.15963886]
[1772214825927,1.63659631,1930.0,1929.0,1.15963886]
[1772214826131,0.49359631,1929.7,1929.0,1.29862306]
[1772214826703,0.49359631,1929.7,1929.0,0.00263886]
[1772214826903,0.49359631,1929.6,1929.0,0.00263886]
[1772214827544,0.49359631,1929.5,1929.0,0.00263886]
[1772214827704,1.63559631,1929.5,1929.0,0.00263886]
[1772214828214,1.78933591,1929.4,1929.0,0.00263886]
[1772214830332,1.29564696,1929.6,1929.0,0.00263886]
[1772214830517,1.29564696,1929.6,1928.6,1.29622292]
[1772214830518,0.49359631,1929.3,1928.6,1.29622292]
[1772214831119,1.78924327,1929.6,1928.6,1.79418959]
[1772214831348,1.144,1929.5,1928.6,1.79418959]
[1772214831753,1.144,1929.4,1928.6,1.79418959]
[1772214832532,1.144,1929.4,1928.6,1.29622292]
[1772214832533,0.49359631,1929.3,1928.6,1.29622292]
[1772214832928,2.43976929,1929.4,1928.5,1.29628532]
[1772214832929,1.63759631,1929.2,1928.5,1.29628532]
[1772214833346,0.49359631,1929.2,1928.5,1.29628532]
[1772214833642,1.144,1929.1,1928.5,1.29628532]
[1772214833815,1.144,1929.1,1928.5,1.79425199]
[1772214834016,2.93333183,1929.5,1928.6,0.49906667]
[1772214834617,2.93333183,1929.5,1928.7,1.29620988]
[1772214834818,0.49359631,1929.4,1928.7,1.29620988]
[1772214835126,0.49359631,1929.0,1928.6,0.0011]
[1772214835332,1.63759631,1929.0,1928.6,0.0011]
[1772214835838,1.63859631,1929.0,1928.6,1.2973763]
[1772214836222,0.49359631,1929.0,1928.6,1.2973763]
[1772214836427,1.63759631,1929.0,1928.6,1.2973763]
[1772214836619,2.93365449,1929.0,1928.6,0.0011]
[1772214838915,0.49359631,1928.9,1928.6,0.0011]
[1772214840446,1.149,1928.9,1928.6,0.0011]
[1772214840816,1.149,1929.1,1928.6,0.49906667]
[1772214841447,0.49359631,1929.4,1928.6,0.49906667]
[1772214841622,1.149,1929.4,1928.6,0.49906667]
[1772214842523,1.148,1929.4,1928.6,0.49906667]
[1772214842724,0.49359631,1929.3,1928.6,0.49906667]
[1772214842942,0.49359631,1929.3,1928.7,1.29620988]
[1772214843143,0.49359631,1929.6,1928.7,1.79417655]
[1772214843459,1.148,1929.4,1928.8,0.49796667]
[1772214843632,1.78920375,1929.6,1928.8,0.49796667]
[1772214843834,1.148,1929.5,1928.8,0.49796667]
[1772214844152,2.93720205,1929.6,1928.8,0.49796667]
[1772214844320,2.93720205,1929.6,1928.7,1.29620988]
[1772214844321,0.49359631,1929.5,1928.7,1.29620988]
[1772214844652,0.49359631,1929.5,1928.7,1.79417655]
[1772214845649,0.49359631,1929.5,1928.8,0.49796667]
[1772214845953,1.148,1929.7,1928.9,0.49796667]
[1772214846252,0.49359631,1929.8,1928.9,0.49796667]
[1772214846431,2.44340662,1929.9,1929.1,0.49796667]
[1772214846629,0.49359631,1929.8,1929.1,0.49796667]
[1772214846834,0.49359631,1929.8,1928.9,2.414782]
[1772214847144,2.93608389,1929.8,1929.0,1.29600829]
[1772214847530,0.001,1929.9,1929.1,0.49796667]
[1772214847726,1.148,1929.9,1929.1,0.49796667]
[1772214847922,0.001,1929.9,1929.3,0.49796667]
[1772214848352,0.00153886,1930.0,1929.5,0.49796667]
[1772214848529,0.49359631,1930.4,1929.7,0.49796667]
[1772214848734,0.84,1930.5,1929.7,0.49796667]
[1772214848957,1.147,1930.6,1929.7,0.49796667]
[1772214849253,1.78851859,1930.7,1929.8,1.7934377]
[1772214849424,1.78847565,1930.7,1929.9,0.49796667]
[1772214849624,0.49359631,1930.6,1929.8,1.29547103]
[1772214849838,0.49359631,1930.5,1929.8,1.29547103]
[1772214850356,0.47532691,1930.4,1929.8,1.29547103]
[1772214850649,0.47532691,1930.4,1929.4,1.2957396]
[1772214851027,1.77051231,1930.3,1929.4,1.2957396]
[1772214851238,1.146,1930.2,1929.4,1.2957396]
[1772214851552,2.91651231,1930.3,1929.4,1.2957396]
[1772214851855,1.62132691,1930.3,1929.4,1.77772535]
[1772214852056,1.77046745,1930.3,1929.5,2.78883375]
[1772214852230,1.77046745,1930.3,1929.5,0.48198575]
[1772214852838,6.32628766,1930.4,1929.5,0.48198575]
[1772214852839,1.29511198,1930.4,1929.5,0.48198575]
[1772214853035,2.44003472,1930.5,1929.6,1.77759105]
[1772214853239,1.145,1930.5,1929.7,0.48198575]
[1772214853456,1.29490935,1930.7,1929.7,0.48198575]
[1772214853869,1.77023626,1930.7,1929.7,0.48198575]
[1772214854080,0.47532691,1930.6,1929.6,1.2956053]
[1772214854765,0.47532691,1930.6,1929.7,0.48198575]
[1772214854942,0.47532691,1930.6,1929.6,1.2956053]
[1772214855258,0.47532691,1930.4,1929.1,0.48198575]